Cogmind - Beta 13 X1 @@@ ROGUE MODE // 2023.06.21 @ 22:59:30 Player: Runia Result: Destroyed by FI-GG9(R) with Subdweller Laser Performance ------------- Evolutions (0) 0 Regions Visited (2) 400 Robots Destroyed (25) 125 Value Destroyed (639) 639 Prototype IDs (0) 0 Alien Tech Used (0) 0 Bonus (0) 0 TOTAL SCORE: 1164 Bonus ------- None Cogmind --------- Core Integrity 0/250 Matter 265/300 Energy 181/200 System Corruption 0% Temperature Cool (6) Movement Treading (240) Ox1 Location -10/Subcaves Parts ------- > --- POWER (1) -------- Subdweller Power Source > --- PROPULSION (2) --- Light Treads Subdweller Monowheel > --- UTILITY (2) ------ Large Storage Unit Makeshift Armor Plating > --- WEAPON (2) ------- Subdweller Laser Light Assault Rifle > --- INVENTORY (15) --- Spiked Treads Wheel Wheel High-capacity Matter Pod (47) Signal Interpreter Seismic Detector Riot Gun Small Laser Subdweller Laser Grenade Launcher Grenade Launcher Shrapnel Trap Piercing Trap Peak State ------------ > --- POWER ------------ Subdweller Power Source > --- PROPULSION ------- Light Treads Subdweller Monowheel > --- UTILITY ---------- Large Storage Unit Makeshift Armor Plating > --- WEAPON ----------- Subdweller Laser Light Assault Rifle > --- INVENTORY -------- Spiked Treads Wheel Wheel High-capacity Matter Pod Signal Interpreter Seismic Detector Riot Gun Small Laser Subdweller Laser Light Assault Rifle Grenade Launcher Grenade Launcher Shrapnel Trap Piercing Trap [Rating: 14] Favorites ----------- Power Light Ion Engine Engine Light Ion Engine Propulsion Light Treads Treads Light Treads Leg Aluminum Leg Wheel Subdweller Monowheel Utility Large Storage Unit Device Seismic Detector Storage Large Storage Unit Protection Makeshift Armor Plating Weapon Medium Laser Energy Gun Medium Laser Ballistic Gun Light Assault Rifle Launcher Grenade Launcher Build | -11 -10 -10 ------- Run | Jun Mat Sub Slots Evolved . | . . . Power . | . . . Propulsion . | . . . Utility . | . . . Weapon . | . . . Parts Attached 33 | 2 13 18 Power 4 | . 3 1 Engine 4 | . 3 1 Core . | . . . Reactor . | . . . Propulsion 8 | 2 3 3 Treads 7 | 2 3 2 Leg . | . . . Wheel 1 | . . 1 Hover . | . . . Flight . | . . . Utility 6 | . 2 4 Device 2 | . 1 1 Storage 2 | . 1 1 Processor . | . . . Hackware . | . . . Protection 2 | . . 2 Artifact . | . . . Weapon 15 | . 5 10 Energy Gun 5 | . 1 4 Energy Cannon . | . . . Ballistic Gun 5 | . 3 2 Ballistic Cannon . | . . . Launcher 5 | . 1 4 Special Weapon . | . . . Impact Weapon . | . . . Slashing Weapon . | . . . Piercing Weapon . | . . . Special Melee Weapon . | . . . Unidentified Prototypes . | . . . Parts Lost 5 | . 2 3 Power 2 | . 2 . Propulsion 2 | . . 2 Utility . | . . . Weapon 1 | . . 1 Highest Loss Streak 2 | . 1 2 To Critical Strikes . | . . . Average Slot Usage (%) 96 | . 96 96 Engine 13 | . 13 14 Treads 26 | . 28 24 Device 10 | . 11 8 Storage 14 | . 14 16 Energy Gun 19 | . 24 11 Ballistic Gun 8 | . 3 15 Naked Turns . | . . . Heaviest Build 32 | 11 28 32 Greatest Support 40 | 40 40 40 Greatest Overweight (x) 1 | . . 1 Average Overweight (x) . | . . . Largest Inventory Capacity 15 | 8 15 15 Average Capacity 13 | 8 11 15 Most Carried 15 | 6 10 15 Average Carried 9 | 5 7 13 Final Capacity 15 | 8 15 15 Final Carried 13 | 4 10 13 Class Distribution -------------------- 76% | Mutant 23% | Scavenger-Mutant Dominant Class ---------------- Mutant | -10/Materials Scavenger-Mutant | -10/Subcaves Resources | -11 -10 -10 ----------- Run | Jun Mat Sub Matter Collected 612 | 200 144 268 Remotely . | . . . Salvage Created 687 | . 490 197 Parts 53 | . 33 20 Haulers Intercepted 1 | . 1 . Recyclers Shooed . | . . . Parts Field Recycled . | . . . Retrieved Matter . | . . . Parts Self-Destructed 11 | . . 11 Prevented . | . . . Kills | -11 -10 -10 ------- Run | Jun Mat Sub Combat Hostiles Destroyed 22 | . 13 9 Guns 13 | . 9 4 AOE 7 | . 2 5 Classes Destroyed 6 | . 5 1 Builder 1 | . 1 . Hauler 1 | . 1 . Watcher 1 | . 1 . Swarmer 8 | . 3 5 Grunt 10 | . 10 . Subdweller 4 | . . 4 Best Kill Streak 5 | . 4 5 Combat Bots Only 5 | . 4 5 Max Kills in Single Turn 3 | . 2 3 Gunslinging . | . . . Exploded 3 | . 2 3 Melee . | . . . Uniques/NPCs Destroyed . | . . . Combat | -11 -10 -10 -------- Run | Jun Mat Sub Damage Taken 1319 | . 503 816 Core 268 | . 65 203 Absorbed by Shields . | . . . Core Remaining (%) 100 | 100 . . Volleys Fired 70 | . 50 20 Largest 2 | . 2 2 Hottest 90 | . 90 80 Shots Fired 136 | . 98 38 Gun 131 | . 97 34 Cannon . | . . . Launcher 5 | . 1 4 Special . | . . . Kinetic 45 | . 28 17 Thermal 86 | . 69 17 Explosive 5 | . 1 4 Electromagnetic . | . . . Robot Hit Streak 31 | . 9 31 Robot Miss Streak 3 | . 3 1 Penetration Max . | . . . Secondary Targets 2 | . . 2 Max Gunslinging Chain 1 | . . 1 Shots Hit Robots 100 | . 67 33 Core Hits 46 | . 31 15 Critical Kills . | . . . Critical Parts Destroyed . | . . . Critical Strikes 5 | . 5 . Burn 5 | . 5 . Melee Attacks . | . . . Impact . | . . . Slashing . | . . . Piercing . | . . . Sneak Attacks . | . . . Combat Hostiles . | . . . Follow-up Attacks . | . . . Damage Inflicted 1459 | . 809 650 Guns 1141 | . 749 392 Cannons . | . . . Explosions 318 | . 60 258 Melee . | . . . Ramming . | . . . Kinetic 294 | . 179 115 Thermal 847 | . 570 277 Explosive 318 | . 60 258 Electromagnetic . | . . . Impact . | . . . Slashing . | . . . Piercing . | . . . Highest Corruption . | . . . Average Corruption . | . . . Corruption Purged . | . . . Corruption Blocked . | . . . Overload Shots . | . . . Overflow Damage 4 | . . 4 Projectiles . | . . . Explosions 4 | . . 4 Melee . | . . . Knockbacks . | . . . Impact . | . . . Kinetic . | . . . Secondary . | . . . Self-Inflicted Damage 43 | . 20 23 Shots 2 | . 1 1 Rammed . | . . . Targets Rammed . | . . . Kicked . | . . . Crushed . | . . . Highest Temperature 267 | . 267 25 Average Temperature 73 | . 79 12 Received Heat Transfer 399 | . 237 162 Siege Activations . | . . . Robots Corrupted . | . . . Combat Hostiles . | . . . Parts Fried . | . . . Impact Corruptions . | . . . Robots Melted 2 | . 2 . Combat Hostiles 2 | . 2 . Parts Melted 5 | . 5 . Heat Transferred 2354 | . 1882 472 Parts Sabotaged . | . . . Parts Stolen . | . . . Parts Stripped . | . . . Power Chain Reactions . | . . . Missiles Intercepted . | . . . Alert | -11 -10 -10 ------- Run | Jun Mat Sub Peak Influence 257 | . 257 . Initial . | . . . Average 120 | . 121 . Maximum Alert Level 1 | . 1 . Low Security (%) 69 | 100 69 . Level 1 30 | . 30 . Level 2 . | . . . Level 3 . | . . . Level 4 . | . . . Level 5 . | . . . High Security . | . . . Max Security . | . . . Squads Dispatched 3 | . 3 . Investigation 1 | . 1 . Extermination . | . . . Reinforcement 2 | . 2 . Assault . | . . . Garrison . | . . . Intercept . | . . . Searches Triggered . | . . . Construction Impeded . | . . . Haulers Reinforced . | . . . Active Scanning Responses . | . . . Cargo Convoy Interrupts . | . . . Stealth | -11 -10 -10 --------- Run | Jun Mat Sub Distress Signals . | . . . Communications Jammed . | . . . Distress Signals . | . . . Times Spotted 28 | . 18 10 Peak Tracking Total 5 | . 5 4 Tactical Retreats 2 | . 2 . Traps | -11 -10 -10 ------- Run | Jun Mat Sub Traps Triggered 3 | . 3 . Indirectly . | . . . Trap Hack Attempts . | . . . Triggered . | . . . Disarmed . | . . . Reprogrammed . | . . . Reused . | . . . Traps Extracted . | . . . Installed . | . . . Triggered . | . . . Most Traps Carried 2 | . . 2 Machines | -11 -10 -10 ---------- Run | Jun Mat Sub Machines Disabled 1 | . 1 . Max in Single Turn 1 | . 1 . Machines Repaired . | . . . Machines Sabotaged . | . . . Overloaded Fab Kills . | . . . Hacking | -11 -10 -10 --------- Run | Jun Mat Sub Machines Accessed 1 | . 1 . Terminals 1 | . 1 . Fabricators . | . . . Repair Stations . | . . . Recycling Units . | . . . Scanalyzers . | . . . Garrison Access . | . . . Total Hacks 1 | . 1 . Successful 1 | . 1 . Failed . | . . . Catastrophic . | . . . Database Lockouts . | . . . Manual . | . . . Terminals 1 | . 1 . Fabricators . | . . . Repair Stations . | . . . Recycling Units . | . . . Scanalyzers . | . . . Garrison Access . | . . . Terminal Hacks 1 | . 1 . Hauler Manifests 1 | . 1 . Fabricator Hacks . | . . . Repair Station Hacks . | . . . Recycling Unit Hacks . | . . . Scanalyzer . | . . . Garrison Access Hacks . | . . . Unauthorized Hacks . | . . . Terminals . | . . . Fabricators . | . . . Repair Stations . | . . . Recycling Units . | . . . Scanalyzers . | . . . Garrison Access . | . . . Data Cores Recovered . | . . . Used . | . . . Hacking Detections . | . . . Full Trace Events . | . . . Feedback Events . | . . . Feedback Blocked . | . . . Robot Schematics Acquired . | . . . Robots Built . | . . . Authchips . | . . . Time . | . . . Total Robot Build Rating . | . . . Part Schematics Acquired . | . . . Parts Built . | . . . Authchips . | . . . Time . | . . . Total Part Build Rating . | . . . Parts Repaired . | . . . Time . | . . . Parts Recycled . | . . . Recycled Matter . | . . . Retrieved Matter . | . . . Retrieved Components . | . . . Parts Scanalyzed . | . . . Part Schematics Acquired . | . . . Parts Damaged . | . . . Bothacking | -11 -10 -10 ------------ Run | Jun Mat Sub Used RIF Installer . | . . . Robots Hacked . | . . . Non-combat . | . . . Combat . | . . . Robot Hacks Applied . | . . . Relay Couplers Released . | . . . Fabnet Peak Effective % . | . . . Robots Rewired . | . . . Allies Hacked . | . . . Hacks Repelled . | . . . Allies | -11 -10 -10 -------- Run | Jun Mat Sub Total Allies . | . . . Largest Group . | . . . Highest-Rated Group . | . . . Highest-Rated Ally . | . . . Total Orders . | . . . Ally Attacks . | . . . Total Damage . | . . . Kills . | . . . Allies Corrupted . | . . . Allies Melted . | . . . Intel | -11 -10 -10 ------- Run | Jun Mat Sub Robot Analysis Total . | . . . Derelict Logs Recovered . | . . . Drone Launches . | . . . Drone Recoveries . | . . . Exploration | -11 -10 -10 ------------- Run | Jun Mat Sub Turns Passed 1275 | 3 762 510 Spaces Moved 604 | 1 341 262 Core . | . . . Treads 565 | 1 341 223 Legs . | . . . Wheels 39 | . . 39 Hover . | . . . Flight . | . . . Fastest Speed 120 | 160 160 120 Average Speed 160 | 160 160 160 Slowest Speed 240 | 160 160 240 Overloaded Moves . | . . . Propulsion Burnouts . | . . . Robots Hopped . | . . . Cave-ins Triggered . | . . . Exploration Rate (%) 25 | 2 55 18 Regions Visited 2 Branch Regions 1 Pre-discovered Areas . | . . . Known Exits Taken . | . . . Unknown Exits Taken 2 | 1 1 . Scrap Searched 6 | . . 6 Spaces Dug 8 | . . 8 Terrain Destroyed 17 | . 2 15 Melee . | . . . Projectile . | . . . AOE 17 | . 2 15 Terrain Rammed . | . . . Walls Destroyed . | . . . Machines Disabled . | . . . Actions | -11 -10 -10 --------- Run | Jun Mat Sub Total 781 | 4 460 317 Wait 55 | . 49 6 Move 602 | . 340 262 Hop . | . . . Pick Up 12 | . 6 6 Fast Attach 7 | . 5 2 Attach 7 | 2 1 4 Detach 1 | . . 1 Swap 19 | . 7 12 Drop 8 | 2 2 4 Fire 70 | . 50 20 Melee . | . . . Ram . | . . . Kick . | . . . Crush . | . . . Escape Stasis . | . . . Rewire . | . . . Trap . | . . . Miscellaneous . | . . . Route ------- -11/Junkyard -10/Materials (discovered 3 exits: [*Mat] / [*Min] / [*Sub]) -10/Subcaves History --------- Turn | Location | Event 4 | -11/Junkyard | Discovered new exit (range 0) 4 | -11/Junkyard | Entered Materials 62 | -10/Materials | Discovered new exit (range 16) 309 | -10/Materials | Build established: Mutant 542 | -10/Materials | Discovered new exit (range 14) 750 | -10/Materials | Discovered new exit (range 10) 766 | -10/Materials | Entered Subcaves 1249 | -10/Subcaves | A Subdweller sparked back to life 1249 | -10/Subcaves | A Subdweller sparked back to life 1249 | -10/Subcaves | A Subdweller sparked back to life 1261 | -10/Subcaves | Core integrity fell below 50% 1265 | -10/Subcaves | Core integrity fell below 20% 1276 | -10/Subcaves | Destroyed by FI-GG9(R) with Subdweller Laser Last Messages --------------- 00977_ Acquired 9 matter. 01180_ Destroyed Flight Unit. 01180_ S-10 Pest destroyed. 01193_ Flight Unit fries itself beyond repair. 01195_ Sub. Optics shoots sparks and powers down. 01195_ Dropped Broken Sub. Optics. 01200_ Dropped Lgt. Treads. 01200_ Acquired Sub. Monowheel. 01203_ Acquired 33 matter. 01207_ Acquired 3 matter. 01208_ Acquired 7 matter. 01249_ D2-4QY(R) creaks and sparks as it begins to move. 01249_ BW-YHW(R) creaks and sparks as it begins to move. 01249_ FI-GG9(R) creaks and sparks as it begins to move. 01251_ D2-4QY(R) destroyed. 01266_ Lgt. Assault Rifle destroyed. 01269_ FI-GG9(R) affixes Scrap Shield Fragment to Scrap Shield. 01272_ BW-YHW(R) affixes Scrap Shield Fragment to Scrap Shield. 01276_ BW-YHW(R) destroyed. 01276_ Switching to secondary target: FI-GG9(R). Map ----- +----------------------------------------------------+ | | | | | | | | | | | | | | | ?????????????????????????????????????????????????? | | ?????????????????????????????????????????????????? | | ?????????????????????????????????????????????????? | | ?????????????????????????????????????????????????? | | ?????????????????????????????????????????????????? | | ?????????????????????????????????????????????????? | | ?????????????????????????????????????????????????? | | ?????????????????????????????????????????????????? | | ?????????????????????????????????????????????????? | | ?????????????????????????????????????????????????? | | ?????????????????????????????????????????????????? | | ?????????????????????????????????????????????????? | | ?????????????????????????????????????????????????? | | ?????????????????????????????????????????????????? | | ?????????????????????????????????????????????????? | | ?????????????###????########?????????????????????? | | ????????????## ##??# <*]%#?????????????????????? | | ????????????# ##?# ! !%###???####????####????? | | ????????????# ### < @[&=##### #???## ????? | | ?????????????# ## R ## #???# ?????? | | ???????####??# ; <& ## ###?# ?????? | | ???????# #### ####;# ## #?# ## #?????? | | ???????# ### ###### #?# ###???? | | ???????# ### ##?# ##??? | | ??????## #??# ###??# #### | | ?????## ##?# ## ###### # # | | ?????# ###### ## ### ### ### | | ?????# ##### ########## ### ! | | ?????## ## # # # # & # | | ??????#### *& # | | ?????????# ### = # | | ?????????# ## ##?# # ## # ! # | | ????????## #####??########### ## # | | ????????# #??????????????# ##? ## | | ????????## #???#######???# ## ##??? #? | | ?????????# #??## ##?# ## ##???? #? | | ?????????# ##### ### ## ### #??????#? | | ?????????## ## #####?# #???????? | | ??????????## #?????# #??????? | | ???????????## ##????# #??????? | | ????????????## ##### ##???# ##??????? | | ?????????????####??## ##?? #???????? | | ???????????????????# #?#### ???????? | +----------------------------------------------------+ Best States ------------- Heat Dissipation 25 Energy Generation 15 Energy Capacity 250 Matter Stores 300 Matter Capacity 500 Sight Range 21 Terrain Scan Density 10 Armor Coverage 100 Evasion (%) 40 Recoil Reduction 2 Item Schematics ----------------- None Robot Schematics ------------------ None Fabricated ------------ Nothing Alien Tech Used ----------------- None Achievements -------------- None Challenges ------------ None Game ------ Seed ResetThunderCycler Manual? 0 Play Time 00:11:40 Cumulative 781.1 hours Start 2023.06.21 @ 22:51:17 End 2023.06.21 @ 22:59:30 Sessions 1 Manual Loads 0 Difficulty Rogue Special Mode None Game No. 685 Rogue 685 Adventurer 0 Explorer 0 Win Type - Total 36 Types 14/6/6/1/1/1/5/1/1 Lore% 88 Gallery% 94 Achievement% 81 Wizard Run 0 Options --------- ASCII 0 Keyboard 0 Movement Mouse Keybinds 1 Fullscreen 2 Font 24/Smallcaps Map View 76x50 Tactical HUD 1 Map Filters NONE Filters NONE Steam 1 RUN: 87545fda-0e41-45f3-9e74-a7a81e1ef8d2